bitfinex-derivatives/quotes_BNBF0:USTF0_20250810
["timestamp","ask_amount","ask_price","bid_price","bid_amount"]
[1754796977397,0.5,814.21,812.86,1.63614049]
[1754796977590,0.3,814.11,812.86,1.63614049]
[1754796977789,0.3,814.11,813.03,1.63614049]
[1754796977993,0.5,814.17,813.0,1.63614049]
[1754796978300,0.5,814.17,813.02,1.63614049]
[1754796978591,0.5,814.17,812.97,1.63614049]
[1754796978891,0.5,814.21,812.97,1.63614049]
[1754796979091,0.5,814.21,812.98,1.63614049]
[1754796979399,0.5,814.21,813.0,1.63614049]
[1754796979593,0.5,814.21,812.99,1.63614049]
[1754796979792,0.7864765,814.2,812.85,1.63614049]
[1754796979990,0.7864765,814.19,812.85,1.63614049]
[1754796980196,0.7864765,814.18,812.87,1.63614049]
[1754796980395,0.7864765,814.17,812.87,1.63614049]
[1754796980596,0.5,814.21,812.87,1.63614049]
[1754796980796,0.78666231,814.2,812.87,1.63614049]
[1754796980996,0.78666231,814.19,812.89,1.63614049]
[1754796981193,0.78666231,814.18,812.91,1.63614049]
[1754796981490,0.423,814.28,812.96,1.63614049]
[1754796981691,0.78683815,814.27,812.98,1.63614049]
[1754796982004,0.3,814.23,812.99,1.63614049]
[1754796982199,0.82334238,814.52,812.98,1.63614049]
[1754796982200,0.78683815,814.22,812.98,1.63614049]
[1754796982394,0.264,814.22,812.98,1.63614049]
[1754796982698,0.3,814.09,812.98,1.63614049]
[1754796983009,0.5,814.2,812.98,1.63614049]
[1754796983194,0.5,814.29,812.98,1.63614049]
[1754796983398,0.336,814.15,812.98,1.63614049]
[1754796983598,0.5,814.2,812.94,1.63614049]
[1754796983798,0.78691856,814.19,812.94,1.63614049]
[1754796983999,0.78691856,814.18,812.94,1.63614049]
[1754796984195,0.5,814.2,812.94,1.63614049]
[1754796984393,0.5,814.2,812.6,1.07]
[1754796984394,0.78693223,814.19,812.95,1.63614049]
[1754796984597,0.336,814.05,812.95,1.63614049]
[1754796984797,0.5,814.2,812.95,1.63614049]
[1754796984996,0.78693226,814.19,812.95,1.63614049]
[1754796985199,0.78693226,814.18,812.95,1.63614049]
[1754796985401,0.5,814.29,812.95,1.63614049]
[1754796985602,0.78695577,814.28,812.95,1.63614049]
[1754796985801,0.78695577,814.27,812.95,1.63614049]
[1754796986102,0.3,814.24,812.95,1.63614049]
[1754796986298,0.78695577,814.23,812.96,1.63614049]
[1754796986596,0.296,814.09,812.96,1.63614049]
[1754796986810,0.5,814.23,812.96,1.63614049]
[1754796986998,0.78698467,814.22,812.96,1.63614049]
[1754796987202,0.78698467,814.21,812.96,1.63614049]
[1754796987400,1.28698467,814.2,813.02,1.63614049]
[1754796987600,0.78698467,814.19,813.02,1.63614049]
[1754796989103,0.5,814.29,813.03,1.63614049]
[1754796989309,0.78702973,814.28,813.03,1.63614049]
[1754796989604,0.78702973,814.27,813.03,1.63614049]
[1754796989803,0.5,814.29,813.21,1.63614049]
[1754796990006,0.5,814.29,812.6,1.07]
[1754796990007,0.5,814.29,813.23,1.63614049]
[1754796990203,0.294,814.3,813.25,1.63614049]
[1754796990805,0.5,814.32,813.25,1.63614049]
[1754796991414,0.5,814.32,813.22,1.63614049]
[1754796991604,0.5,814.32,813.24,1.63614049]
[1754796992208,0.5,814.32,813.25,1.63614049]
[1754796992402,0.5,814.32,813.26,1.63614049]
[1754796993307,0.5,814.23,813.26,1.63614049]
[1754796993504,0.5,814.23,813.28,1.63614049]
[1754796993907,0.5,814.23,813.27,1.63614049]
[1754796994209,0.5,814.23,813.28,1.63614049]
[1754796994508,0.5,814.32,813.28,1.63614049]
[1754796995303,0.5,814.32,813.29,1.63614049]
[1754796996310,0.5,814.32,813.3,1.63614049]
[1754796997212,0.5,814.32,813.31,1.63614049]
[1754796997611,0.5,814.32,813.22,1.63614049]
[1754796998812,0.5,814.32,813.23,1.63614049]
[1754796999712,0.5,814.32,813.2,1.63614049]
[1754797000110,0.258,814.35,813.09,1.63614049]
[1754797000313,0.5,814.43,813.21,1.63614049]
[1754797000515,0.5,814.45,813.23,1.63614049]
[1754797001212,0.33,814.4,813.23,1.63614049]
[1754797001412,0.348,814.49,813.23,1.63614049]
[1754797002817,0.5,814.54,813.23,1.63614049]
[1754797003013,0.348,814.49,813.24,1.63614049]
[1754797003213,0.5,814.54,813.25,1.63614049]
[1754797003727,0.314,814.49,813.25,1.63614049]
[1754797003918,0.314,814.49,813.27,1.63614049]
[1754797004116,0.348,814.49,813.27,1.63614049]
[1754797004413,0.82334238,814.96,813.27,1.63614049]
[1754797004414,0.348,814.51,813.27,1.63614049]
[1754797005220,0.348,814.51,813.29,1.63614049]
[1754797005920,0.348,814.51,813.3,1.63614049]
[1754797006318,0.348,814.51,813.31,1.63614049]
[1754797007320,0.348,814.51,813.34,1.63614049]
[1754797008222,0.348,814.51,813.37,1.63614049]
[1754797008726,0.336,814.37,813.37,1.63614049]
[1754797008926,0.5,814.54,813.37,1.63614049]
[1754797009127,0.35,814.51,813.37,1.63614049]
[1754797009327,0.35,814.51,813.41,1.63614049]
[1754797009523,0.264,814.4,813.41,1.63614049]
[1754797009724,0.3,814.41,813.42,1.63614049]
[1754797010129,0.5,814.39,813.44,1.63614049]
[1754797010324,0.264,814.3,813.5,1.63614049]
[1754797010524,0.264,814.3,812.72,2.72690082]
[1754797010525,0.264,814.3,813.52,1.63614049]
[1754797010824,0.264,814.3,813.57,1.63614049]
[1754797011023,0.5,814.44,813.57,1.63614049]
[1754797011323,0.5,814.44,813.6,1.63614049]
[1754797012024,0.294,814.45,813.63,1.63614049]
[1754797012825,0.5,814.51,813.63,1.63614049]
[1754797013131,0.5,814.53,813.63,1.63614049]
[1754797013326,0.5,814.53,813.65,1.63614049]
[1754797014127,0.5,814.53,813.66,1.63614049]
[1754797014527,0.5,814.53,813.67,1.63614049]
[1754797015230,0.5,814.53,813.68,1.63614049]
[1754797015834,0.5,814.54,813.67,1.63614049]
[1754797016429,0.5,814.54,813.69,1.63614049]
[1754797017034,0.82334238,814.9,813.69,1.63614049]
[1754797017035,0.35,814.48,813.69,1.63614049]
[1754797017234,0.5,814.54,813.71,1.63614049]
[1754797017530,0.5,814.54,812.7,1.179]
[1754797017531,0.5,814.54,813.72,1.63614049]
[1754797018240,0.5,814.54,813.73,1.63614049]
[1754797018837,0.5,814.54,813.71,1.63614049]
[1754797019037,0.5,814.63,813.82,1.63614049]
[1754797019332,0.5,814.63,813.91,1.63614049]
[1754797019537,0.35,814.6,813.83,1.63614049]
[1754797019736,0.5,814.7,813.81,1.63614049]
[1754797019934,0.461,814.65,813.81,1.63614049]
[1754797020140,0.333,814.52,813.81,1.63614049]
[1754797020334,0.5,814.69,813.81,1.63614049]
[1754797020835,0.445,814.63,813.77,1.63614049]
[1754797021036,0.369,814.52,813.68,1.63614049]
[1754797021243,0.298,814.35,813.55,1.63614049]
[1754797021435,0.333,814.27,813.57,1.63614049]
[1754797021642,0.263,814.21,813.55,1.63614049]
[1754797021840,0.263,814.21,812.75,2.72690082]
[1754797021841,0.298,814.3,813.54,1.63614049]
[1754797022138,0.386,814.29,813.54,1.63614049]
[1754797022841,0.315,814.26,813.56,1.63614049]
[1754797023141,0.298,814.11,813.53,1.63614049]
[1754797023441,0.369,814.18,813.53,1.63614049]
[1754797023945,0.5,814.09,813.48,1.63614049]
[1754797024245,0.258,813.97,813.31,1.63614049]
[1754797024436,0.5,813.89,813.25,1.63614049]
[1754797024645,0.315,813.87,813.25,1.63614049]
[1754797025141,2.74447462,815.36,812.7,1.179]
[1754797025142,0.5,813.89,813.24,1.63614049]
[1754797025342,0.5,813.89,813.28,1.63614049]
[1754797025538,0.315,813.89,813.29,1.63614049]
[1754797025741,0.315,813.89,813.3,1.63614049]
[1754797025941,0.315,813.89,813.28,1.63614049]
[1754797026141,0.315,813.89,813.27,1.63614049]
[1754797026653,0.315,813.89,813.26,1.63614049]
[1754797027047,0.348,813.87,813.26,1.63614049]
[1754797027243,0.348,813.87,813.24,1.63614049]
[1754797027539,0.314,813.86,813.2,1.63614049]
[1754797027755,0.5,813.82,813.14,1.63614049]
[1754797027942,0.5,813.82,813.06,1.63614049]
[1754797028344,0.5,813.82,813.02,1.63614049]
[1754797029242,0.5,813.82,812.99,1.63614049]
[1754797029646,0.21411761,813.62,813.0,1.63614049]
[1754797029847,0.21411761,813.62,812.87,1.63614049]
[1754797030253,0.21411761,813.62,812.84,1.63614049]
[1754797030846,0.21411761,813.62,812.85,1.63614049]
[1754797031255,0.21411761,813.62,812.81,1.63614049]
[1754797032155,0.21411761,813.62,812.78,1.63614049]
[1754797033051,0.21411761,813.62,812.79,1.63614049]
[1754797033250,0.21411761,813.62,812.77,1.63614049]
[1754797034350,0.21411761,813.62,812.75,1.63614049]
[1754797035249,0.21411761,813.62,812.73,1.63614049]
[1754797036056,0.21411761,813.62,812.76,1.63614049]
[1754797036253,0.21411761,813.62,812.75,1.63614049]
[1754797036651,0.21411761,813.62,812.74,1.63614049]
[1754797036950,0.21411761,813.62,812.75,1.63614049]
[1754797037154,0.21411761,813.62,812.73,1.63614049]
[1754797037558,0.21411761,813.62,812.76,1.63614049]
[1754797038050,0.21411761,813.62,812.7,1.179]
[1754797038655,0.21411761,813.62,812.73,1.63614049]
[1754797038859,0.21411761,813.62,812.85,1.63614049]
[1754797039155,0.21411761,813.62,812.84,1.63614049]
[1754797039360,0.21411761,813.62,812.7,1.179]
[1754797039556,0.5,814.1,812.7,1.179]
[1754797039857,0.21404847,813.67,812.7,1.179]
[1754797040059,0.419,814.09,812.7,1.179]
[1754797040361,0.21408007,813.67,812.7,1.179]
[1754797042759,0.21408007,813.67,812.82,1.63614049]
[1754797042966,0.21408007,813.67,812.91,1.63614049]
[1754797043160,0.82334238,814.8,812.91,1.63614049]
[1754797043361,0.5,814.22,812.91,1.63614049]
[1754797043561,0.21404781,813.82,812.93,1.63614049]
[1754797043761,0.5,814.27,812.93,1.63614049]
[1754797043964,0.21403859,813.83,813.06,1.63614049]
[1754797044265,0.5,814.27,813.13,1.63614049]
[1754797044466,0.21402411,813.86,813.16,1.63614049]
[1754797044862,0.21402411,813.86,812.34,2.72690082]
[1754797044863,0.346,814.21,813.23,1.63614049]
[1754797045067,0.21401885,813.86,813.24,1.63614049]
[1754797045264,0.5,814.27,813.23,1.63614049]
[1754797045463,0.294,814.16,813.23,1.63614049]
[1754797045667,0.21400766,813.86,813.23,1.63614049]
[1754797045970,0.82334238,814.99,813.15,1.63614049]
[1754797046167,0.21395898,813.99,813.14,1.63614049]
[1754797046363,0.35,814.33,813.14,1.63614049]
[1754797046566,0.21399055,814.0,813.13,1.63614049]
[1754797047263,0.21399055,814.0,813.18,1.63614049]
[1754797047572,0.21399055,814.0,813.22,1.63614049]
[1754797049374,0.21399055,814.0,813.21,1.63614049]
[1754797049670,0.21399055,814.0,813.16,1.63614049]
[1754797051270,0.21399055,814.0,813.15,1.63614049]
[1754797052272,0.21399055,814.0,813.17,1.63614049]
[1754797052577,0.21396621,814.13,813.25,1.63614049]
[1754797052771,0.21396621,814.13,813.34,1.63614049]
[1754797053079,0.21396621,814.13,813.28,1.63614049]
[1754797053270,0.21396621,814.13,813.27,1.63614049]
[1754797053871,0.21396621,814.13,813.29,1.63614049]
[1754797054273,0.21396621,814.13,813.3,1.63614049]
[1754797056275,0.21396621,814.13,813.29,1.63614049]
[1754797056674,0.21396621,814.13,813.3,1.63614049]
[1754797056882,0.348,814.51,813.3,1.63614049]
[1754797057078,0.21393925,814.24,813.3,1.63614049]
[1754797057377,0.21393925,814.24,812.6,1.129]
[1754797057378,0.21393925,814.24,813.29,1.63614049]
[1754797058176,0.21393925,814.24,813.28,1.63614049]
[1754797058574,0.21393925,814.24,813.29,1.63614049]
[1754797058778,0.21393925,814.24,813.3,1.63614049]
[1754797059777,0.21393925,814.24,813.31,1.63614049]
[1754797060181,0.21393925,814.24,813.3,1.63614049]
[1754797061587,0.21393925,814.24,813.26,1.63614049]
[1754797062290,0.21393925,814.24,813.25,1.63614049]
[1754797062888,0.21393925,814.24,813.33,1.63614049]
[1754797063287,0.21393925,814.24,813.32,1.63614049]
[1754797064487,0.21393925,814.24,813.33,1.63614049]
[1754797066790,0.21393925,814.24,813.31,1.63614049]
[1754797067692,0.21393925,814.24,813.27,1.63614049]
[1754797068889,0.21393925,814.24,813.28,1.63614049]
[1754797069296,0.21393925,814.24,813.27,1.63614049]
[1754797069796,0.21393925,814.24,813.14,1.63614049]
[1754797071397,0.21393925,814.24,813.17,1.63614049]
[1754797072295,0.21393925,814.24,812.6,1.129]
[1754797072296,0.21393925,814.24,813.16,1.63614049]
[1754797072496,0.21393925,814.24,813.15,1.63614049]
[1754797073395,0.21393925,814.24,813.14,1.63614049]
[1754797074493,0.21393925,814.24,812.6,1.129]
[1754797074494,0.21393925,814.24,813.13,1.63614049]
[1754797074697,0.21393925,814.24,813.15,1.63614049]
[1754797074996,0.21393925,814.24,813.07,1.63614049]
[1754797075394,0.21393925,814.24,813.05,1.63614049]
[1754797076699,0.21393925,814.24,813.07,1.63614049]
[1754797077300,0.21393925,814.24,813.06,1.63614049]
[1754797077495,0.21393925,814.24,813.09,1.63614049]
[1754797078200,0.21393925,814.24,813.08,1.63614049]
[1754797079198,0.21393925,814.24,813.09,1.63614049]
[1754797079699,0.21393925,814.24,812.6,1.129]
[1754797079700,0.21393925,814.24,813.26,1.63614049]
[1754797080501,0.21393925,814.24,813.36,1.63614049]
[1754797080802,0.82334238,815.26,813.42,1.63614049]
[1754797081003,0.21387942,814.34,813.49,1.63614049]
[1754797081206,0.82334238,815.34,813.47,1.63614049]
[1754797081413,0.21384657,814.48,813.52,1.63614049]
[1754797081905,0.21383408,814.51,813.5,1.63614049]
[1754797082504,0.21383408,814.51,813.48,1.63614049]
[1754797083206,0.21383408,814.51,813.47,1.63614049]
[1754797083505,0.21383408,814.51,813.44,1.63614049]
[1754797084006,0.21383408,814.51,813.45,1.63614049]
[1754797084403,0.21383408,814.51,813.44,1.63614049]
[1754797084907,0.21383408,814.51,813.5,1.63614049]
[1754797085507,0.21383408,814.51,813.49,1.63614049]
[1754797085901,0.21383408,814.51,813.58,1.63614049]
[1754797086104,0.21383408,814.51,813.52,1.63614049]
[1754797086302,0.21383408,814.51,813.5,1.63614049]
[1754797087909,0.21383408,814.51,813.46,1.63614049]
[1754797088208,0.21383408,814.51,813.45,1.63614049]
[1754797088409,0.21383408,814.51,813.46,1.63614049]
[1754797088604,0.21383408,814.51,813.49,1.63614049]
[1754797088809,0.21383408,814.51,813.15,1.63614049]
[1754797089005,0.21383408,814.51,813.16,2.57459534]
[1754797089311,0.21383408,814.51,813.18,1.63614049]
[1754797090310,0.21383408,814.51,813.2,1.63614049]
[1754797091108,0.21383408,814.51,813.22,1.63614049]
[1754797091312,0.21383408,814.51,813.23,1.63614049]
[1754797092110,0.21383408,814.51,813.25,1.63614049]
[1754797092413,0.21383408,814.51,813.26,1.63614049]
[1754797092613,0.21383408,814.51,813.23,1.63614049]
[1754797093214,0.21383408,814.51,813.26,1.63614049]
[1754797093509,0.21383408,814.51,813.27,1.63614049]
[1754797094311,0.21383408,814.51,813.31,1.63614049]
[1754797095109,0.21383408,814.51,813.35,1.63614049]
[1754797096216,0.21383408,814.51,813.39,1.63614049]
[1754797096512,0.21383408,814.51,813.4,1.63614049]
[1754797097216,0.21383408,814.51,813.44,1.63614049]
[1754797097418,0.21383408,814.51,813.45,1.63614049]
[1754797098414,0.21383408,814.51,813.5,1.63614049]
[1754797098812,0.21383408,814.51,813.57,1.63614049]
[1754797099316,0.21383408,814.51,813.6,1.63614049]
[1754797099513,0.21383408,814.51,813.61,1.63614049]
[1754797099713,0.21383408,814.51,813.64,1.63614049]
[1754797100113,0.21383408,814.51,813.67,1.63614049]
[1754797100318,0.21383408,814.51,813.68,1.63614049]
[1754797100816,0.21383408,814.51,813.66,1.63614049]
[1754797101221,0.21383408,814.51,813.69,1.63614049]
[1754797101515,0.21383408,814.51,813.7,1.63614049]
[1754797101815,0.21383408,814.51,813.68,1.63614049]
[1754797102215,0.21383408,814.51,813.72,1.63614049]
[1754797102722,0.21383408,814.51,813.74,1.63614049]
[1754797103123,0.21383408,814.51,813.77,1.63614049]
[1754797104022,0.21383408,814.51,813.85,1.63614049]
[1754797104219,0.21383408,814.51,813.87,1.63614049]
[1754797104823,0.21383408,814.51,813.88,1.63614049]
[1754797105124,0.21383408,814.51,813.89,1.63614049]
[1754797106124,0.21383408,814.51,813.9,1.63614049]
[1754797106322,0.21383408,814.51,813.99,1.63614049]
[1754797106926,0.21383408,814.51,813.18,2.72690082]
[1754797106927,0.21383408,814.51,813.98,1.63614049]
[1754797107322,0.21383408,814.51,813.73,1.63614049]
[1754797107528,0.21383408,814.51,813.7,1.63614049]
[1754797109222,0.21383408,814.51,812.85,1.341]
[1754797109223,0.21383408,814.51,813.71,1.63614049]
[1754797109427,0.21383408,814.51,813.72,1.63614049]
[1754797109625,0.21383408,814.51,813.69,1.63614049]
[1754797109927,0.21383408,814.51,812.85,1.341]
[1754797109928,0.21383408,814.51,813.62,1.63614049]
[1754797110325,0.21383408,814.51,813.63,1.63614049]
[1754797111629,0.21383408,814.51,813.87,1.63614049]
[1754797111826,0.296,814.44,813.83,1.63614049]
[1754797112026,0.296,814.4,813.92,1.63614049]
[1754797112226,0.21383408,814.51,813.87,1.63614049]
[1754797112830,0.21383408,814.51,813.89,1.63614049]
[1754797115129,0.21383408,814.51,813.9,1.63614049]
[1754797115833,0.21383408,814.51,813.91,1.63614049]
[1754797116129,0.21383408,814.51,812.92,3.81766115]
[1754797116130,0.21383408,814.51,813.92,1.63614049]
[1754797116729,0.21383408,814.51,813.91,1.63614049]
[1754797117432,0.21383408,814.51,813.92,1.63614049]
[1754797117733,0.21383408,814.51,813.95,1.63614049]
[1754797117927,0.21383408,814.51,813.94,1.63614049]
[1754797118233,0.21383408,814.51,814.0,1.63614049]
[1754797118433,0.21383408,814.51,813.33,2.72690082]
[1754797118631,0.21383408,814.51,813.39,2.72690082]
[1754797118829,0.21383408,814.51,813.01,2.72690082]
[1754797119030,0.5,814.48,813.01,2.72690082]
[1754797119327,0.5,814.48,813.02,0.96403148]
[1754797119530,0.5,814.48,813.01,2.72690082]
[1754797119935,0.5,814.48,812.86,2.72690082]
[1754797120530,0.21383408,814.51,812.86,2.72690082]
[1754797120935,0.21383408,814.51,812.87,0.9641537]
[1754797121135,0.80305505,814.5,812.86,2.72690082]
[1754797121331,0.21383408,814.51,812.86,2.72690082]
[1754797121635,0.21383408,814.51,812.87,0.96417015]
[1754797121837,0.21383408,814.51,812.88,0.96417015]
[1754797122133,0.21383408,814.51,812.82,2.72690082]
[1754797122337,0.21383408,814.51,812.83,0.96414209]
[1754797122535,0.21383408,814.51,812.84,0.96414209]
[1754797122737,0.21383408,814.51,812.85,0.96414209]
[1754797123036,0.21383408,814.51,812.86,0.96414209]
[1754797123236,0.21383408,814.51,812.87,0.96414209]
[1754797123533,0.21383408,814.51,812.88,0.96414209]
[1754797123730,0.21383408,814.51,812.81,2.72690082]
[1754797123932,0.21383408,814.51,812.82,0.96416496]
[1754797124233,0.21383408,814.51,812.83,0.96416496]
[1754797124437,0.21383408,814.51,812.84,0.96416496]
[1754797124737,0.21383408,814.51,812.85,0.96416496]
[1754797124931,0.21383408,814.51,812.86,0.96416496]
[1754797125136,0.21383408,814.51,812.87,0.96416496]
[1754797125331,0.21383408,814.51,812.88,0.96416496]
[1754797125536,0.80308807,814.5,812.89,0.96416496]
[1754797125737,0.21383408,814.51,812.9,0.96416496]
[1754797126037,0.80309725,814.5,812.75,1.144]
[1754797126233,0.80309725,814.49,812.75,1.144]
[1754797126435,0.80309725,814.48,812.75,1.144]
[1754797126636,0.80309725,814.47,812.75,1.144]
[1754797126834,0.80309725,814.46,812.75,1.144]
[1754797127038,0.80309725,814.45,812.75,1.144]
[1754797127239,0.80309725,814.44,812.75,1.144]
[1754797127534,0.80309725,814.43,812.75,1.144]
[1754797127736,0.80309725,814.42,812.75,1.144]
[1754797127934,0.80309725,814.41,812.75,1.144]
[1754797128140,0.80309725,814.4,812.75,1.144]
[1754797128335,0.80309725,814.39,812.75,1.144]
[1754797128536,0.80309725,814.38,812.75,1.144]
[1754797128740,0.80309725,814.37,812.75,1.144]
[1754797128940,0.80309725,814.36,812.75,1.144]
[1754797129142,0.80309725,814.35,812.75,1.144]
[1754797129344,0.80309725,814.34,812.75,1.144]
[1754797129537,0.80309725,814.33,812.76,0.96271221]
[1754797129743,0.21383408,814.51,812.77,0.96271221]
[1754797130041,0.21383408,814.51,812.78,0.96271221]
[1754797130243,0.21383408,814.51,812.79,0.96271221]
[1754797130440,0.21383408,814.51,812.8,0.96271221]
[1754797130640,0.21383408,814.51,812.81,0.96271221]
[1754797130842,0.21383408,814.51,812.82,0.96271221]
[1754797131038,0.21383408,814.51,812.83,0.96271221]
[1754797131239,0.21383408,814.51,812.75,1.144]
[1754797131440,0.21383408,814.51,812.76,0.96200207]
[1754797131641,0.21383408,814.51,812.77,0.96200207]
[1754797131838,0.21383408,814.51,812.78,0.96200207]
[1754797132039,0.21383408,814.51,812.79,0.96200207]
[1754797132240,0.21383408,814.51,812.8,0.96200207]
[1754797132441,0.21383408,814.51,812.81,0.96200207]
[1754797132642,0.21383408,814.51,812.82,0.96200207]
[1754797132844,0.21383408,814.51,812.83,0.96200207]
[1754797133044,0.21383408,814.51,812.75,1.144]
[1754797133341,0.21383408,814.51,812.76,0.96176936]
[1754797133642,0.21383408,814.51,812.77,0.96176936]
[1754797133847,0.21383408,814.51,812.78,0.96176936]
[1754797134147,0.21383408,814.51,812.79,0.96176936]
[1754797134345,0.21383408,814.51,812.8,0.96176936]
[1754797134546,0.21383408,814.51,812.81,0.96176936]
[1754797134747,0.21383408,814.51,812.82,0.96176936]
[1754797134944,0.21383408,814.51,812.83,0.96176936]
[1754797135258,0.21383408,814.51,812.75,1.144]
[1754797135444,0.21383408,814.51,812.76,0.96120253]
[1754797135743,0.21383408,814.51,812.77,0.96120253]
[1754797136044,0.21383408,814.51,812.78,0.96120253]
[1754797136247,0.21383408,814.51,812.79,0.96120253]
[1754797136447,0.21383408,814.51,812.8,0.96120253]
[1754797136747,0.21383408,814.51,812.81,0.96120253]
[1754797136947,0.21383408,814.51,812.82,0.96120253]
[1754797137144,0.21383408,814.51,812.83,0.96120253]
[1754797137347,0.21383408,814.51,812.75,1.144]
[1754797137547,0.21383408,814.51,812.76,0.96095812]
[1754797137744,0.21383408,814.51,812.77,0.96095812]
[1754797137948,0.21383408,814.51,812.78,0.96095812]
[1754797138248,0.21383408,814.51,812.79,0.96095812]
[1754797138447,0.21383408,814.51,812.8,0.96095812]
[1754797138650,0.21383408,814.51,812.81,0.96095812]
[1754797138846,0.21383408,814.51,812.82,0.96095812]
[1754797139048,0.21383408,814.51,812.83,0.96095812]
[1754797139247,0.21383408,814.51,812.84,0.96095812]
[1754797139445,0.21383408,814.51,812.85,0.96095812]
[1754797139651,0.21383408,814.51,812.75,1.144]
[1754797139948,0.21383408,814.51,812.76,0.960653]
[1754797140150,0.21383408,814.51,812.77,0.960653]
[1754797140346,0.21383408,814.51,812.78,0.960653]
[1754797140547,0.21383408,814.51,812.79,0.960653]
[1754797140750,0.80050693,814.5,812.8,0.960653]
[1754797140952,0.21383408,814.51,812.81,0.960653]
[1754797141149,0.80050693,814.5,812.82,0.960653]
[1754797141350,0.21383408,814.51,812.83,0.960653]
[1754797141553,0.80053199,814.5,812.84,0.960653]
[1754797141854,0.21383408,814.51,812.85,0.9607258]
[1754797142154,0.21383408,814.51,812.75,1.144]
[1754797142449,0.21383408,814.51,812.76,0.96078223]
[1754797142648,0.80065631,814.5,812.77,0.96078223]
[1754797142852,0.21383408,814.51,812.78,0.96078223]
[1754797143053,0.80065631,814.5,812.79,0.96078223]
[1754797143353,0.80073274,814.49,812.75,1.144]
[1754797143553,0.80073274,814.48,812.75,1.144]
[1754797143754,0.80073274,814.47,812.75,1.144]
[1754797143954,0.80073274,814.46,812.75,1.144]
[1754797144154,0.80073274,814.45,812.75,1.144]
[1754797144354,0.80073274,814.44,812.75,1.144]
[1754797144551,0.80080078,814.43,812.75,1.144]
[1754797144755,0.80080078,814.42,812.75,1.144]
[1754797145051,0.21383408,814.51,812.75,1.144]
[1754797145255,0.80074314,814.5,812.75,1.144]
[1754797145555,0.80074314,814.49,812.75,1.144]
[1754797145750,0.80074314,814.48,812.75,1.144]
[1754797145952,0.80074314,814.47,812.75,1.144]
[1754797146157,0.80074314,814.46,812.75,1.144]
[1754797146354,0.80074314,814.45,812.75,1.144]
[1754797146552,0.80074314,814.44,812.75,1.144]
[1754797146756,0.80074314,814.43,812.75,1.144]
[1754797146957,0.80074314,814.42,812.75,1.144]
[1754797147159,0.80074314,814.41,812.75,1.144]
[1754797147359,0.80074314,814.4,812.77,2.72690082]
[1754797147557,0.80074314,814.39,812.77,2.72690082]
[1754797147755,0.21383408,814.51,812.75,1.144]
[1754797147956,0.80082292,814.5,812.75,1.144]
[1754797149057,0.80082292,814.49,812.75,1.144]
[1754797149262,0.80082292,814.48,812.75,1.144]
[1754797149459,0.80082292,814.47,812.75,1.144]
[1754797149659,0.82334238,814.43,812.75,1.144]
[1754797149958,0.80082292,814.42,812.75,1.144]
[1754797150164,0.80082292,814.41,812.75,1.144]
[1754797150362,0.80082292,814.4,812.75,1.144]
[1754797150667,0.80082292,814.39,812.75,1.144]
[1754797150862,0.80082292,814.38,812.75,1.144]
[1754797151056,0.80082292,814.37,812.75,1.144]
[1754797151261,0.80082292,814.36,812.75,1.144]
[1754797151463,0.80082292,814.35,812.75,1.144]
[1754797151762,0.80082292,814.34,812.75,1.144]
[1754797151961,0.80082292,814.33,812.75,1.144]
[1754797152163,0.80082292,814.32,812.75,1.144]
[1754797152360,0.80082292,814.31,812.75,1.144]
[1754797152563,0.80082292,814.3,812.75,1.144]
[1754797152762,0.80082292,814.29,812.75,1.144]
[1754797152962,0.80082292,814.28,812.75,1.144]
[1754797153162,0.80082292,814.27,812.75,1.144]
[1754797153363,0.80082292,814.26,812.75,1.144]
[1754797153559,0.80082292,814.25,812.34,2.72690082]
[1754797153765,0.80082292,814.24,812.35,0.96079376]
[1754797154061,0.80082292,814.23,812.36,0.96079376]
[1754797154264,0.80082292,814.22,812.37,0.96079376]
[1754797154463,0.80082292,814.21,812.38,0.96079376]
[1754797154666,0.80082292,814.2,812.39,0.96079376]
[1754797154965,0.80082292,814.19,812.4,0.96079376]
[1754797155165,0.80082292,814.19,812.32,2.72690082]
[1754797155166,0.80082292,814.18,812.41,0.96079376]
[1754797155366,0.80082292,814.17,812.42,0.96079376]
[1754797155566,0.80082292,814.16,812.43,0.96079376]
[1754797155763,0.80082292,814.15,812.44,0.96079376]
[1754797155967,0.80082292,814.14,812.45,0.96079376]
[1754797156168,0.82334238,814.45,812.46,0.96079376]
[1754797156368,0.82334238,814.45,812.47,0.96079376]